bitfinex/quotes_ETHUSD_20240709
["timestamp","ask_amount","ask_price","bid_price","bid_amount"]
[1720504024640,3.43763415,3072.7,3072.6,3.25457]
[1720504024832,3.43763415,3072.7,3072.4,3.25475]
[1720504025899,3.43763415,3072.7,3072.6,3.25457]
[1720504026461,2.59799206,3072.7,3072.6,3.25457]
[1720504028344,2.59799206,3072.7,3072.6,6.50914]
[1720504028753,5.79842887,3073.4,3073.3,3.25383]
[1720504028985,3.27079443,3074.3,3073.4,3.25365]
[1720504028986,2.3502,3074.0,3073.4,3.25365]
[1720504029685,2.3502,3074.0,3072.8,3.25429]
[1720504029686,2.3502,3074.0,3073.8,3.25328]
[1720504030297,2.9250715,3074.2,3073.4,0.06506809]
[1720504030516,2.59799206,3074.2,3073.4,0.06506809]
[1720504030876,2.59799206,3074.2,3074.1,3.25298]
[1720504031379,2.59799206,3074.2,3073.9,3.25319]
[1720504031569,2.59799206,3074.2,3074.0,3.25307]
[1720504031771,3.08333594,3074.2,3073.3,3.25379]
[1720504032112,2.4593,3074.0,3073.0,3.25407]
[1720504032273,2.2386,3073.9,3072.6,3.25448]
[1720504032487,2.26892861,3073.9,3072.7,3.25437]
[1720504032723,0.47282286,3073.8,3072.7,3.25437]
[1720504033002,0.03027676,3073.7,3072.7,3.25437]
[1720504033312,0.03027676,3073.7,3073.2,3.25383]
[1720504033623,0.03027676,3073.7,3071.9,2.271]
[1720504033624,2.472,3073.6,3071.5,10.85818518]
[1720504033764,2.82230996,3073.6,3072.6,3.25455]
[1720504033969,2.82230996,3073.6,3072.9,3.25424]
[1720504034522,0.03020297,3073.5,3072.8,3.25435]
[1720504034667,0.03020297,3073.5,3072.3,3.2548]
[1720504034865,2.59799206,3073.2,3072.1,3.25509]
[1720504035165,2.41039374,3073.1,3072.0,3.25519]
[1720504035372,2.41039374,3073.1,3072.2,3.25497]
[1720504035766,2.41039374,3073.1,3072.8,3.25435]
[1720504035964,0.03009374,3073.1,3072.8,3.25435]
[1720504036195,0.03009374,3073.1,3072.9,3.25416]
[1720504036402,0.03009374,3073.1,3072.5,3.25462]
[1720504036403,0.03009374,3073.1,3073.0,3.25414]
[1720504036815,2.59799206,3073.2,3072.6,3.25449]
[1720504037264,0.03012666,3073.1,3072.6,3.25449]
[1720504037464,0.03012666,3073.1,3072.3,3.25487]
[1720504038110,0.03012666,3073.1,3072.5,3.25467]
[1720504038420,0.03012666,3073.1,3071.9,0.06509577]
[1720504038622,0.03012666,3073.1,3071.9,3.06509577]
[1720504038840,2.85779127,3073.2,3072.8,3.25428]
[1720504039123,2.59799206,3073.2,3073.1,3.25404]
[1720504040430,2.59799206,3073.2,3073.0,3.25412]
[1720504040785,2.59799206,3073.2,3073.1,3.25404]
[1720504041532,2.59799206,3073.2,3073.1,6.50808]
[1720504042186,2.59799206,3073.2,3073.1,3.25404]
[1720504042438,2.59799206,3073.2,3072.9,3.25424]
[1720504042730,2.59799206,3073.2,3073.1,3.25404]
[1720504044101,2.59799206,3073.2,3073.0,3.25404]
[1720504044705,2.59491947,3073.2,3073.0,3.25404]
[1720504045451,2.59491947,3073.2,3073.1,3.25404]
[1720504046156,2.59491947,3073.2,3072.9,3.25425]
[1720504047461,0.03079618,3073.1,3072.9,3.25425]
[1720504048169,0.03079618,3073.1,3072.8,3.25435]
[1720504048466,0.03079618,3073.1,3072.7,3.25438]
[1720504048959,2.59491947,3073.2,3072.7,3.25438]
[1720504049175,2.85441142,3073.2,3072.5,3.25465]
[1720504049381,0.03078218,3073.1,3072.6,3.25456]
[1720504049743,0.03078218,3073.1,3072.8,3.25435]
[1720504049938,2.85441142,3073.2,3072.6,3.25456]
[1720504050139,0.28544114,3073.1,3072.5,3.25466]
[1720504050345,0.28544114,3073.1,3071.9,3.0]
[1720504050346,2.59491947,3073.2,3072.0,0.06509415]
[1720504050642,2.59491947,3073.2,3072.9,3.25424]
[1720504051036,2.59491947,3073.2,3073.1,3.25404]
[1720504051462,5.79842887,3073.8,3073.4,3.25368]
[1720504052890,5.79842887,3073.8,3073.5,3.25361]
[1720504054453,2.3555,3074.0,3073.5,3.25361]
[1720504054649,1.12721824,3073.9,3073.5,3.25361]
[1720504054860,2.3555,3074.0,3073.3,3.25374]
[1720504055052,1.12721031,3073.9,3073.3,3.25374]
[1720504055249,0.34827103,3073.8,3073.3,3.25374]
[1720504055435,1.12721031,3073.7,3073.3,3.25374]
[1720504055896,2.59491947,3074.2,3073.5,3.25355]
[1720504056057,1.12713709,3074.1,3073.5,3.25355]
[1720504056256,1.12713709,3074.0,3073.5,3.25355]
[1720504056563,2.59491947,3074.2,3073.5,3.25355]
[1720504056773,2.59491947,3074.2,3073.0,0.0650733]
[1720504056774,1.12713146,3074.1,3073.8,3.2532]
[1720504056970,2.59491947,3074.2,3073.9,3.25311]
[1720504057172,2.59491947,3074.2,3074.0,3.25308]
[1720504058361,2.59491947,3074.2,3073.8,3.2532]
[1720504058565,2.59491947,3074.2,3073.9,3.25317]
[1720504062389,0.03107975,3074.1,3073.8,3.2532]
[1720504062687,2.59491947,3074.2,3073.9,3.25315]
[1720504063051,2.59491947,3074.2,3073.0,3.25407]
[1720504063052,1.15822771,3074.1,3073.4,3.25369]
[1720504063355,1.12706401,3074.0,3073.5,3.2536]
[1720504063573,0.0311637,3074.1,3073.5,3.2536]
[1720504063784,2.85441142,3074.2,3073.5,3.2536]
[1720504064054,1.15844713,3074.1,3073.5,3.2536]
[1720504064276,1.12714704,3074.0,3073.5,3.2536]
[1720504064507,0.03132697,3074.1,3073.5,3.2536]
[1720504064821,0.03130653,3074.0,3073.5,3.2536]
[1720504065005,2.85441142,3074.2,3073.5,3.2536]
[1720504065184,1.15842586,3074.1,3073.5,3.2536]
[1720504065410,0.03132697,3074.1,3073.5,3.2536]
[1720504065749,1.42012881,3074.0,3073.5,3.2536]
[1720504066053,2.59491947,3074.2,3073.9,3.25319]
[1720504066609,2.59491947,3074.2,3073.7,3.25334]
[1720504066867,1.420097,3074.1,3073.8,3.25329]
[1720504067644,2.59491947,3074.2,3073.8,3.25329]
[1720504067846,1.42008411,3074.1,3073.8,3.25329]
[1720504068343,1.82158447,3074.1,3073.5,3.25361]
[1720504068505,1.42008411,3074.0,3073.3,3.25374]
[1720504068708,1.30933944,3073.9,3073.4,3.25362]
[1720504068956,1.42022399,3073.8,3073.3,3.25374]
[1720504069106,1.42022399,3073.8,3073.5,3.2536]
[1720504069306,0.40150036,3074.1,3073.5,3.2536]
[1720504069557,2.54732634,3074.0,3073.3,3.25374]
[1720504069717,2.59491947,3074.2,3073.8,3.25323]
[1720504069919,1.42007636,3074.1,3073.8,3.25323]
[1720504070839,2.59491947,3074.2,3073.8,3.25323]
[1720504071147,1.42005094,3074.1,3073.8,3.25323]
[1720504072746,1.42005094,3074.1,3073.6,3.25344]
[1720504072969,0.03124893,3074.0,3073.6,3.25344]
[1720504073120,0.03124893,3074.0,3073.7,3.2534]
[1720504073324,0.03124893,3074.0,3073.8,3.25327]
[1720504073618,2.59491947,3074.2,3073.8,3.25327]
[1720504073819,1.45136349,3074.1,3073.8,3.25327]
[1720504074145,0.03128581,3074.1,3073.8,3.25327]
[1720504074344,1.42008424,3074.0,3073.8,3.25327]
[1720504074533,2.59491947,3074.2,3073.8,3.25327]
[1720504074856,1.42008863,3074.1,3073.7,3.2534]
[1720504075056,1.45136896,3074.1,3073.7,3.2534]
[1720504075245,1.42008863,3074.0,3073.7,3.2534]
[1720504075460,1.42008863,3074.0,3073.5,3.25359]
[1720504075767,0.03123945,3073.9,3073.5,3.25359]
[1720504075975,1.42021076,3073.8,3073.2,3.25392]
[1720504076134,1.12716143,3073.7,3073.3,3.25379]
[1720504076468,0.03118759,3073.7,3073.3,3.25379]
[1720504076680,0.03118759,3073.7,3073.4,3.25371]
[1720504076847,2.4696,3074.0,3073.4,3.25371]
[1720504077046,0.03116714,3073.6,3073.5,3.25361]
[1720504077243,2.85441142,3074.2,3073.7,3.25335]
[1720504077244,2.59491947,3074.2,3073.7,3.25335]
[1720504077444,2.54720823,3074.1,3073.7,3.25335]
[1720504077648,1.4201243,3074.0,3073.7,3.25335]
[1720504077860,2.59491947,3074.2,3073.7,3.25335]
[1720504078051,2.5472052,3074.1,3073.7,3.25335]
[1720504078253,2.5472052,3074.0,3073.7,3.25335]
[1720504078575,2.85441142,3074.2,3073.7,6.50667]
[1720504078759,2.5471704,3074.1,3073.7,3.25332]
[1720504078954,2.5471704,3074.0,3073.5,3.25357]
[1720504079190,0.54015818,3074.1,3073.6,3.2535]
[1720504079191,2.5471704,3073.9,3073.6,3.2535]
[1720504079385,0.54015818,3074.1,3073.6,3.2535]
[1720504079669,2.54733587,3074.0,3073.6,3.2535]
[1720504079845,2.54733587,3073.9,3073.6,3.2535]
[1720504080048,2.54733587,3073.8,3073.5,3.25357]
[1720504080235,0.56824135,3074.0,3073.5,3.25357]
[1720504080460,2.54736607,3073.9,3073.6,3.2535]
[1720504080800,1.12715313,3073.8,3073.7,3.2534]
[1720504082458,2.54730953,3073.8,3073.7,3.2534]
[1720504082701,3.02431264,3074.2,3073.7,3.2534]
[1720504082870,1.12709498,3073.8,3073.1,3.25393]
[1720504083105,2.54723434,3073.7,3073.1,3.25393]
[1720504083319,4.72409581,3074.2,3073.1,3.25393]
[1720504083320,2.54753063,3073.6,3073.1,3.25393]
[1720504083623,2.54753063,3073.5,3073.1,3.25393]
[1720504083826,1.35969454,3074.0,3073.1,3.25393]
[1720504084140,4.24346572,3073.9,3073.1,3.25393]
[1720504084319,4.24346572,3073.9,3072.7,2.3403]
[1720504084320,2.54759678,3073.8,3072.9,3.2542]
[1720504084492,6.29109132,3073.7,3072.9,3.2542]
[1720504084693,6.29109132,3073.7,3072.7,3.25442]
[1720504084694,2.54759678,3073.6,3072.8,3.25428]
[1720504084917,2.54759678,3073.5,3072.9,3.25421]
[1720504085117,2.54759678,3073.4,3072.9,3.25421]
[1720504085426,2.54759678,3073.3,3072.9,3.25421]
[1720504085606,1.42034122,3073.2,3072.9,3.25421]
[1720504085807,0.43726037,3073.5,3072.9,3.25421]
[1720504086004,0.43726037,3073.5,3072.8,3.25428]
[1720504086005,2.54778341,3073.4,3072.8,3.25428]
[1720504086223,2.54778341,3073.3,3072.8,3.25428]
[1720504086405,2.54778341,3073.2,3072.8,3.25428]
[1720504086597,0.43726037,3073.5,3072.8,3.25428]
[1720504086931,2.54783737,3073.4,3072.8,3.25428]
[1720504087115,2.54783737,3073.3,3072.8,3.25428]
[1720504087445,1.42047553,3073.2,3072.8,3.25428]
[1720504087645,1.42047553,3073.1,3072.8,3.25428]
[1720504087926,1.42047553,3073.1,3072.3,2.2836]
[1720504087927,0.43726037,3073.5,3073.0,3.25413]
[1720504088133,2.54776108,3073.4,3073.0,3.25413]
[1720504088318,1.42043275,3073.3,3073.0,3.25413]
[1720504088495,2.3838,3073.7,3073.1,3.25402]
[1720504088695,2.92208696,3073.6,3073.1,3.25402]
[1720504088895,2.54773751,3073.5,3073.1,3.25402]
[1720504089107,2.54775029,3073.4,3073.1,3.25402]
[1720504089308,1.42043578,3073.3,3073.1,3.25402]
[1720504089537,0.37434945,3073.6,3073.1,3.25402]
[1720504089736,2.54768756,3073.5,3073.1,3.25402]
[1720504089906,1.42039218,3073.4,3073.1,3.25402]
[1720504090228,0.37434945,3073.6,3073.1,3.25402]
[1720504090436,2.54770703,3073.5,3073.1,3.25402]
[1720504090660,1.35969454,3074.0,3073.3,3.25374]
[1720504090877,4.1401607,3073.9,3073.3,3.25374]
[1720504091157,2.54759587,3073.8,3073.3,3.25374]
[1720504091358,0.23287029,3073.9,3073.3,3.25374]
[1720504091359,2.54759587,3073.7,3073.3,3.25374]
[1720504091544,1.42034106,3073.6,3073.3,3.25374]
[1720504091855,1.42034106,3073.5,3073.3,3.25374]
[1720504092063,0.23287029,3073.9,3073.4,3.25372]
[1720504092272,2.54748923,3073.8,3073.5,3.25355]
[1720504092474,0.03103477,3073.8,3073.7,3.2534]
[1720504092956,8.39334834,3074.2,3073.8,3.25323]
[1720504093253,8.39334834,3074.2,3073.9,3.25317]
[1720504093254,3.3865173,3074.1,3073.9,3.25317]
[1720504093488,1.42011058,3074.0,3073.9,3.25317]
[1720504093754,1.42009413,3074.0,3073.9,3.25317]
[1720504093960,2.1084415,3074.0,3073.4,3.25368]
[1720504094145,1.42009413,3074.1,3073.4,3.25368]
[1720504094146,2.54719138,3073.9,3073.4,3.25368]
[1720504094325,1.42009413,3073.8,3073.3,3.25381]
[1720504094660,1.42009413,3073.8,3073.1,3.25397]
[1720504094661,2.54733093,3073.7,3073.1,3.25397]
[1720504094951,2.54733093,3073.6,3073.2,3.25392]
[1720504095260,2.54733093,3073.5,3073.2,3.25392]
[1720504095458,1.42009413,3073.4,3073.2,3.25392]
[1720504095660,1.42041092,3073.3,3073.2,3.25392]
[1720504095819,1.35980675,3073.8,3073.2,3.25392]
[1720504095820,1.42041092,3073.5,3073.2,3.25392]
[1720504096024,1.42041092,3073.4,3073.2,3.25385]
[1720504096225,1.35980675,3073.9,3073.3,3.25381]
[1720504096451,2.54762453,3073.8,3072.7,0.06507925]
[1720504096624,1.35980675,3074.0,3073.8,3.25329]
[1720504096834,2.54740379,3073.9,3073.7,3.25338]
[1720504097038,2.54737686,3073.8,3073.7,3.25338]
[1720504097734,2.54739587,3073.8,3073.7,3.25338]
[1720504097930,2.92474594,3073.8,3073.2,3.25388]
[1720504098146,2.54739587,3073.7,3073.2,6.50772]
[1720504098350,2.54739587,3073.6,3073.3,3.25376]
[1720504098664,1.42023397,3073.5,3073.3,3.25376]
[1720504098855,1.42033829,3073.4,3073.3,3.25376]
[1720504099160,1.42033829,3073.7,3073.3,3.25376]
[1720504099369,1.12725422,3073.6,3073.3,3.25376]
[1720504099529,1.42033829,3073.5,3073.3,3.25376]
[1720504099859,1.42033829,3073.4,3073.3,3.25376]
[1720504100169,1.42031203,3073.7,3073.4,3.25369]
[1720504100464,1.42028514,3073.6,3073.4,3.25369]
[1720504100757,1.42028514,3073.5,3073.4,3.25369]
[1720504101625,1.42028514,3073.8,3073.4,3.25369]
[1720504101827,2.54751712,3073.7,3073.4,3.25369]
[1720504102063,1.66587147,3073.9,3073.4,3.25369]
[1720504102358,3.90737831,3073.8,3073.4,3.25369]
[1720504102530,1.35980675,3073.9,3073.4,3.25369]
[1720504102725,2.54751316,3073.8,3073.4,3.25369]
[1720504102930,1.35980675,3073.9,3073.4,3.25369]
[1720504102931,2.54751316,3073.7,3073.4,3.25369]
[1720504103135,2.54751316,3073.6,3073.2,3.25384]
[1720504103433,2.54754534,3073.5,3073.2,3.25383]
[1720504103666,1.42029495,3073.4,3073.2,3.25383]
[1720504103833,1.42029495,3073.3,3073.2,3.25383]
[1720504104032,1.42035031,3073.7,3073.3,3.25382]
[1720504104257,2.54764399,3073.6,3073.3,3.25382]
[1720504104452,2.54764399,3073.5,3073.3,3.25382]
[1720504104632,0.34016314,3073.8,3073.3,3.25382]
[1720504104633,1.42036789,3073.4,3073.3,3.25382]
[1720504104845,1.69996989,3073.8,3073.3,3.25382]
[1720504104846,1.42036789,3073.7,3073.3,3.25382]
[1720504105038,2.54761187,3073.6,3073.3,3.25382]
[1720504105234,2.54761187,3073.5,3073.3,3.25382]
[1720504105435,7.15823562,3073.9,3073.5,3.25359]
[1720504105655,2.54741508,3073.8,3073.7,3.2534]
[1720504106369,1.42024027,3073.8,3073.7,3.2534]
[1720504107252,1.45133241,3073.8,3073.7,3.2534]
[1720504107765,1.45133241,3073.8,3073.6,3.2535]
[1720504107951,1.42012507,3073.7,3073.6,3.2535]
[1720504108152,1.45119676,3073.7,3073.6,3.2535]
[1720504108585,1.45124391,3073.7,3073.6,3.2535]
[1720504110793,1.45124391,3073.7,3072.9,4.11434431]
[1720504110984,1.42017222,3073.6,3073.3,3.25382]
[1720504111376,0.03106578,3073.5,3073.3,3.25382]
[1720504111568,1.42017222,3073.4,3073.3,6.50765]
[1720504111769,0.03106578,3073.5,3073.4,3.25372]
[1720504111969,1.42026625,3073.5,3073.4,3.25372]
[1720504112267,1.42026625,3073.5,3073.4,6.50744]
[1720504112467,2.8405315,3073.5,3073.4,6.50744]
[1720504115475,2.8405315,3073.5,3073.4,3.25372]
[1720504116610,2.8405315,3073.5,3073.4,6.50744]
[1720504116905,7.16194181,3074.1,3073.6,3.25348]
[1720504117106,2.54731095,3074.0,3073.6,3.25348]
[1720504117273,2.54731095,3073.9,3073.6,3.25348]
[1720504117475,2.54731095,3073.8,3073.6,3.25348]
[1720504117775,1.42018378,3073.7,3073.6,3.25348]
[1720504118206,1.42018378,3074.0,3073.6,3.25348]
[1720504118403,1.1271139,3073.9,3073.6,3.25348]
[1720504118613,2.59491947,3074.2,3073.6,3.25348]
[1720504118614,1.42018378,3073.8,3073.7,3.2534]
[1720504118912,1.42010041,3074.1,3073.8,3.25324]
[1720504119207,1.12706133,3074.0,3073.8,3.25324]
[1720504119512,1.4200998,3073.9,3073.8,3.25324]
[1720504119725,1.7048325,3074.5,3074.0,3.25299]
[1720504119726,1.36351294,3074.5,3074.0,3.25299]
[1720504120027,1.41998,3074.4,3074.0,3.25299]
[1720504120178,2.54694889,3074.4,3074.0,3.25299]
[1720504120514,2.54694889,3074.3,3074.0,3.25299]
[1720504120732,2.54694889,3074.2,3074.0,3.25299]
[1720504121036,1.36351294,3074.4,3074.0,3.25299]
[1720504121037,2.54694889,3074.1,3074.0,3.25299]
[1720504121214,1.41998,3074.1,3074.0,3.25299]
[1720504121408,2.54701768,3074.1,3074.0,3.25299]
[1720504121609,1.41998,3074.1,3074.0,3.25299]
[1720504121933,1.41998,3074.1,3074.0,3.25308]
[1720504122151,1.12703733,3074.1,3074.0,3.25308]
[1720504122300,1.12703733,3074.1,3073.5,3.25352]
[1720504122301,2.57825477,3074.1,3073.5,3.25352]
[1720504122506,2.54701733,3074.0,3073.7,3.25332]
[1720504122701,1.41998,3073.9,3073.7,3.25332]
[1720504122905,1.41998,3073.8,3073.7,3.25332]
[1720504123103,1.45115611,3073.8,3073.7,3.25332]
[1720504123315,1.45129561,3073.8,3073.7,3.25332]
[1720504123721,1.45128354,3073.8,3073.7,3.25332]
[1720504124050,2.57842043,3073.8,3073.3,3.25376]
[1720504124374,2.54730129,3073.7,3073.1,3.25396]
[1720504124656,2.54730129,3073.6,3073.1,3.25396]
[1720504124856,1.42010743,3073.5,3073.1,3.25396]
[1720504125142,1.42010743,3073.4,3073.1,3.25396]
[1720504125349,1.45125072,3073.4,3073.1,3.25396]
[1720504125506,1.42036192,3073.3,3073.1,3.25396]
[1720504125708,0.03114329,3073.4,3073.1,3.25396]
[1720504125907,0.03110238,3073.2,3073.1,3.25396]
[1720504126107,0.88655759,3073.8,3073.1,3.25396]
[1720504126309,2.54764123,3073.7,3073.1,3.25396]
[1720504126535,1.42036982,3073.6,3073.1,3.25396]
[1720504126722,1.12727763,3073.5,3073.1,3.25396]
[1720504126907,1.42036982,3073.4,3073.1,3.25396]
[1720504127102,1.45151311,3073.4,3073.1,3.25396]
[1720504127338,1.42036982,3073.3,3073.1,3.25396]
[1720504127541,1.45149266,3073.3,3073.1,3.25396]
[1720504127712,0.03112284,3073.3,3073.2,3.25393]
[1720504127913,5.79842887,3073.9,3073.4,3.25369]
[1720504128124,2.54740512,3073.8,3073.5,3.25361]
[1720504128419,1.42023471,3073.7,3073.5,3.25361]
[1720504128632,1.42023471,3073.6,3073.5,3.25361]
[1720504128852,1.42023471,3073.8,3073.5,3.25361]
[1720504129013,1.42023471,3073.7,3073.5,3.25361]
[1720504129209,1.42023471,3073.6,3073.5,3.25361]
[1720504130029,1.42017884,3073.8,3073.5,3.25361]
[1720504130831,1.42017884,3073.8,3073.3,3.25377]
[1720504131037,1.12714481,3073.7,3073.3,3.25377]
[1720504131225,1.42017884,3073.6,3073.3,3.25377]
[1720504131436,1.42017884,3073.5,3073.3,3.25377]
[1720504131636,0.57984289,3073.8,3073.3,3.25377]
[1720504131948,2.54737799,3073.7,3073.3,3.25377]
[1720504132148,1.4202198,3073.6,3073.3,3.25377]
[1720504132310,1.4202198,3073.5,3073.3,3.25377]
[1720504132512,0.57984289,3073.8,3073.3,3.25377]
[1720504132737,2.54737758,3073.7,3073.3,3.25377]
[1720504132930,1.42021936,3073.6,3073.3,3.25377]
[1720504133127,0.57984289,3073.8,3073.3,3.25377]
[1720504133346,2.54737906,3073.7,3073.3,3.25377]
[1720504133550,1.42021968,3073.6,3073.3,3.25377]
[1720504133750,1.42022813,3073.5,3073.3,3.25377]
[1720504133926,0.57984289,3073.8,3073.3,3.25377]
[1720504134249,2.5473935,3073.7,3073.4,3.25372]
[1720504134553,1.42022792,3073.6,3073.4,3.25372]
[1720504134844,5.79842887,3073.9,3073.4,3.25372]
[1720504134845,1.42022792,3073.5,3073.4,3.25372]
[1720504135043,1.42022792,3073.8,3073.4,3.25372]
[1720504135253,5.79842887,3073.9,3073.4,3.25372]
[1720504135254,2.54736704,3073.7,3073.4,3.25372]
[1720504135454,1.42022792,3073.6,3073.4,3.25372]
[1720504135754,1.42022792,3073.5,3073.4,3.25372]
[1720504135912,1.42022792,3073.8,3073.4,3.25372]
[1720504136116,1.12713455,3073.7,3073.4,6.50735]
[1720504136327,1.42022792,3073.6,3073.4,6.50735]
[1720504136509,5.79842887,3073.9,3073.5,3.25359]
[1720504136711,2.54733031,3073.8,3073.5,3.25359]
[1720504136947,2.54733031,3073.7,3073.5,3.25359]
[1720504137151,1.42019301,3073.6,3073.5,3.25359]
[1720504137353,5.79842887,3073.9,3073.6,3.2535]
[1720504137654,2.54730748,3073.8,3073.6,3.2535]
[1720504137824,1.42016511,3073.7,3073.6,6.50701]
[1720504138024,5.79842887,3073.9,3073.6,3.2535]
[1720504138244,1.42009538,3073.8,3073.7,3.2534]
[1720504138450,1.42009538,3073.8,3073.7,6.5068]
[1720504138622,5.79842887,3074.3,3074.0,3.25302]
[1720504138944,2.54691983,3074.2,3074.0,3.25302]
[1720504139156,2.54691983,3074.1,3073.8,3.25325]
[1720504139337,2.54691983,3074.0,3073.8,3.25325]
[1720504139539,1.6717375,3074.2,3073.8,3.25325]
[1720504139742,2.54720844,3074.1,3073.8,3.25325]
[1720504139947,2.54720844,3074.0,3073.8,3.25325]
[1720504140245,2.54720844,3073.9,3073.8,3.25325]
[1720504141523,2.54720844,3073.9,3073.7,3.25338]
[1720504141852,2.5472382,3073.8,3073.6,3.25344]
[1720504142055,1.36468367,3074.1,3073.4,3.2537]
[1720504142373,1.36468367,3074.1,3073.0,3.2541]
[1720504142374,1.36468367,3073.9,3073.0,3.2541]
[1720504142522,0.5617862,3073.8,3073.0,3.2541]
[1720504142720,1.36441999,3073.6,3073.0,3.2541]
[1720504142928,2.54765305,3073.5,3073.0,3.2541]
[1720504143256,1.12728011,3073.4,3073.0,3.2541]
[1720504143550,2.54769563,3073.3,3073.0,3.2541]
[1720504143733,1.42041552,3073.2,3073.0,3.2541]
[1720504143921,1.42041552,3073.1,3073.0,3.2541]
[1720504144122,1.42041552,3073.5,3073.0,3.2541]
[1720504144318,1.42041552,3073.5,3072.4,3.25473]
[1720504144319,6.04284817,3073.4,3072.4,3.25473]
[1720504144560,1.36441999,3073.2,3072.2,2.361]
[1720504144864,1.36441999,3072.9,3071.9,3.25524]
[1720504145169,1.36441999,3072.9,3071.8,5.6575]
[1720504145170,6.04312686,3072.8,3072.0,3.25519]
[1720504145328,3.91296696,3072.7,3072.0,3.25519]
[1720504145677,2.71697467,3072.8,3072.0,3.25519]
[1720504145678,1.42087132,3072.6,3072.0,3.25519]
[1720504145833,1.42087132,3072.5,3072.0,3.25519]
[1720504146035,1.42087132,3072.4,3072.0,3.25519]
[1720504146266,1.01265519,3072.8,3071.6,1.69968405]
[1720504146457,7.50274835,3073.0,3072.6,6.50906]
[1720504146458,1.42075206,3072.7,3072.6,6.50906]
[1720504146766,5.79842887,3073.0,3072.9,3.25425]
[1720504146981,8.39334834,3073.5,3073.0,3.25413]
[1720504147139,2.54781807,3073.4,3072.8,3.25434]
[1720504147339,2.5478535,3073.3,3072.6,3.2545]
[1720504147576,1.42046494,3073.2,3072.7,3.25439]
[1720504147740,1.42046494,3073.1,3072.7,3.25439]
[1720504147941,1.14620878,3073.4,3072.7,3.25439]
[1720504148144,2.54793267,3073.3,3072.4,3.25476]
[1720504148343,1.41669771,3073.3,3072.4,3.25476]
[1720504148584,2.54815102,3073.2,3072.4,3.25476]
[1720504148754,2.7811177,3073.3,3072.2,5.52337]
[1720504148755,2.54815102,3073.1,3072.2,3.25492]
[1720504149089,2.54815102,3073.1,3071.8,7.44]
[1720504149090,1.36441999,3072.9,3071.9,3.25527]
[1720504149375,2.54815102,3072.8,3071.9,3.25527]
[1720504149541,2.54815102,3072.7,3071.9,3.25527]
[1720504149737,1.42065057,3072.6,3071.9,3.25527]
[1720504149976,1.42065057,3072.5,3071.9,3.25527]
[1720504150192,1.42065057,3072.4,3071.9,3.25527]
[1720504150368,0.33200428,3072.8,3071.9,3.25527]
[1720504150546,2.54864258,3072.7,3071.9,3.25527]
[1720504150741,1.70898903,3072.6,3071.9,3.25527]
[1720504150946,1.42092434,3072.5,3071.9,3.25527]
[1720504151681,1.42095977,3072.4,3071.9,3.25527]
[1720504151887,0.28806469,3072.6,3071.9,3.25527]
[1720504152093,1.42099315,3072.5,3071.7,3.25552]
[1720504152251,1.42099315,3072.4,3071.7,3.25552]
[1720504152452,0.34057872,3072.7,3071.7,3.25552]
[1720504152647,0.03043859,3072.3,3072.0,5.72059]
[1720504152860,0.34057872,3072.7,3072.3,3.25488]
[1720504153050,0.34057872,3072.7,3072.4,3.25475]
[1720504153385,0.34057872,3072.7,3072.3,3.25488]
[1720504153683,0.34057872,3072.7,3072.4,3.25477]
[1720504155102,0.34057872,3072.7,3072.2,6.50991]
[1720504155390,0.34057872,3072.7,3072.2,3.25492]
[1720504156591,0.34057872,3072.7,3072.4,3.25477]
[1720504157255,0.34057872,3072.7,3072.2,3.25499]
[1720504157787,0.34057872,3072.7,3072.3,3.25485]
[1720504159169,0.34057872,3072.7,3072.2,3.25499]
[1720504160598,0.34057872,3072.7,3071.8,3.25538]
[1720504161291,1.4209456,3072.6,3071.8,3.25538]
[1720504161459,0.17615243,3072.5,3071.8,3.25538]
[1720504161897,0.34057872,3072.7,3071.9,3.25531]
[1720504162392,0.34057872,3072.7,3072.0,3.2552]
[1720504162770,0.34057872,3072.7,3072.1,3.25509]
[1720504164786,0.34057872,3072.7,3072.1,6.51008]
[1720504165654,0.34057872,3072.7,3072.1,3.25499]
[1720504166100,0.34057872,3072.7,3071.9,3.25527]
[1720504166401,0.34057872,3072.7,3071.8,3.2554]
[1720504166602,0.34057872,3072.7,3071.7,3.25552]
[1720504166802,3.55577262,3072.6,3071.5,3.25572]
[1720504166964,5.5332451,3072.5,3071.3,3.25592]
[1720504167156,5.5332451,3072.5,3070.7,10.69654]
[1720504167157,2.54870923,3072.4,3071.2,3.25603]
[1720504167394,2.54870923,3072.3,3071.2,3.25603]
[1720504167565,0.25780979,3072.2,3071.2,3.25603]
[1720504167766,1.79482248,3072.2,3071.3,3.25594]
[1720504167966,0.02937658,3072.1,3071.3,3.25594]
[1720504168167,0.02937658,3072.1,3071.7,3.25551]
[1720504168412,0.02937658,3072.1,3071.8,3.25541]
[1720504168700,0.02937658,3072.1,3071.9,3.2553]
[1720504169206,0.02937658,3072.1,3071.6,3.25562]
[1720504169509,0.02937658,3072.1,3071.8,3.25536]
[1720504169889,0.02937658,3072.1,3071.7,3.25545]
[1720504171758,0.02937658,3072.1,3071.3,3.25592]
[1720504171966,1.12784059,3072.0,3071.3,3.25592]
[1720504172195,1.1278747,3071.9,3071.3,3.25592]
[1720504172407,0.02910265,3071.9,3071.3,3.25592]
[1720504172692,1.12792856,3071.8,3071.2,3.25604]
[1720504173002,0.02908218,3071.8,3071.3,3.25594]
[1720504173173,0.66689399,3072.2,3071.3,3.25594]
[1720504173363,0.02899168,3071.7,3071.3,3.25594]
[1720504173564,0.87182229,3072.1,3071.3,3.25594]
[1720504173767,0.02897121,3071.6,3071.3,3.25594]
[1720504173965,0.87182229,3072.1,3071.0,3.25622]
[1720504174166,0.02895073,3071.5,3071.0,3.25622]
[1720504174404,0.87182229,3072.1,3071.1,3.25615]
[1720504174561,0.02893025,3071.4,3071.1,3.25615]
[1720504174765,0.87182229,3072.1,3070.9,3.25628]
[1720504174992,0.03078969,3071.3,3070.9,3.25628]
[1720504175201,0.87182229,3072.1,3070.9,3.25628]
[1720504175374,0.03076775,3071.2,3070.9,3.25628]
[1720504175565,0.87182229,3072.1,3070.9,3.25628]
[1720504175765,0.03074581,3071.1,3070.9,3.25628]
[1720504176011,5.79842887,3071.6,3070.9,3.25628]
[1720504176179,0.03072386,3071.0,3070.9,3.25628]